[Event "Titled Tuesday Blitz October 26 2021"]
[White "Gaehwiler, Gabriel"]
[Black "Abarca Gonzalez, Nicolas"]
[WhiteFideId "1314530"]
[BlackFideId "3409422"]
[WhiteElo "2320"]
[BlackElo "2504"]
[Result "0-1"]
[Round "06"]
[TimeControl "180+1"]
[Date "2021.10.26"]
[WhiteClock "0:00:07"]
[BlackClock "0:01:12"]

1. d4 {[%clk 0:03:00]}  Nf6 {[%clk 0:02:54]} 2. c4 {[%clk 0:03:00]}  e5 {[%clk 0:02:51]} 3. dxe5 {[%clk 0:02:57]}  Ng4 {[%clk 0:02:50]} 4. Nf3 {[%clk 0:02:57]}  Bc5 {[%clk 0:02:49]} 5. e3 {[%clk 0:02:56]}  Nc6 {[%clk 0:02:47]} 6. Be2 {[%clk 0:02:56]}  Ngxe5 {[%clk 0:02:45]} 7. Nxe5 {[%clk 0:02:55]}  Nxe5 {[%clk 0:02:45]} 8. Nc3 {[%clk 0:02:55]}  O-O {[%clk 0:02:44]} 9. O-O {[%clk 0:02:54]}  a5 {[%clk 0:02:43]} 10. Ne4 {[%clk 0:02:52]}  Ba7 {[%clk 0:02:37]} 11. b3 {[%clk 0:02:49]}  Re8 {[%clk 0:02:36]} 12. Bb2 {[%clk 0:02:47]}  Bb8 {[%clk 0:02:37]} 13. f4 {[%clk 0:02:10]}  Ng6 {[%clk 0:02:29]} 14. Bd3 {[%clk 0:01:13]}  Ra6 {[%clk 0:02:26]} 15. Qh5 {[%clk 0:01:10]}  Qh4 {[%clk 0:02:18]} 16. Qxh4 {[%clk 0:00:43]}  Nxh4 {[%clk 0:02:19]} 17. Rae1 {[%clk 0:00:43]}  Ba7 {[%clk 0:02:14]} 18. Bd4 {[%clk 0:00:33]}  Bb8 {[%clk 0:02:00]} 19. f5 {[%clk 0:00:20]}  d5 {[%clk 0:01:58]} 20. Nc5 {[%clk 0:00:19]}  Rd6 {[%clk 0:01:54]} 21. g3 {[%clk 0:00:18]}  dxc4 {[%clk 0:01:52]} 22. bxc4 {[%clk 0:00:18]}  Rxd4 {[%clk 0:01:45]} 23. exd4 {[%clk 0:00:18]}  Rxe1 {[%clk 0:01:44]} 24. Rxe1 {[%clk 0:00:17]}  Nf3+ {[%clk 0:01:45]} 25. Kf2 {[%clk 0:00:17]}  Nxe1 {[%clk 0:01:44]} 26. Kxe1 {[%clk 0:00:18]}  Kf8 {[%clk 0:01:40]} 27. Be4 {[%clk 0:00:17]}  c6 {[%clk 0:01:34]} 28. Nd3 {[%clk 0:00:16]}  Ke7 {[%clk 0:01:32]} 29. Kd2 {[%clk 0:00:16]}  Kf6 {[%clk 0:01:29]} 30. Nc5 {[%clk 0:00:11]}  h5 {[%clk 0:01:24]} 31. Ke3 {[%clk 0:00:10]}  Ba7 {[%clk 0:01:21]} 32. Nb3 {[%clk 0:00:09]}  a4 {[%clk 0:01:19]} 33. Na5 {[%clk 0:00:07]}  Bb6 {[%clk 0:01:18]} 34. Nxc6 {[%clk 0:00:07]}  bxc6 {[%clk 0:01:18]} 35. c5 {[%clk 0:00:07]}  Ba5 {[%clk 0:01:12]} 0-1


[Site "https://www.chess.com"]

[Event "Titled Tuesday Blitz October 26 2021"]
[White "Gupta, Abhijeet"]
[Black "Nakamura, Hikaru"]
[WhiteFideId "5010608"]
[BlackFideId "2016192"]
[WhiteElo "2549"]
[BlackElo "2884"]
[Result "0-1"]
[Round "06"]
[TimeControl "180+1"]
[Date "2021.10.26"]
[WhiteClock "0:00:47"]
[BlackClock "0:01:57"]

1. d4 {[%clk 0:03:00]}  Nf6 {[%clk 0:02:59]} 2. c4 {[%clk 0:03:00]}  e6 {[%clk 0:02:55]} 3. Nc3 {[%clk 0:02:59]}  Bb4 {[%clk 0:02:54]} 4. e3 {[%clk 0:02:59]}  O-O {[%clk 0:02:54]} 5. Bd2 {[%clk 0:02:59]}  c5 {[%clk 0:02:54]} 6. a3 {[%clk 0:02:57]}  Bxc3 {[%clk 0:02:54]} 7. Bxc3 {[%clk 0:02:58]}  Ne4 {[%clk 0:02:55]} 8. Rc1 {[%clk 0:02:40]}  b6 {[%clk 0:02:54]} 9. Bd3 {[%clk 0:02:27]}  Bb7 {[%clk 0:02:51]} 10. Nf3 {[%clk 0:02:08]}  d6 {[%clk 0:02:48]} 11. Bxe4 {[%clk 0:02:02]}  Bxe4 {[%clk 0:02:48]} 12. d5 {[%clk 0:02:01]}  exd5 {[%clk 0:02:42]} 13. Nd2 {[%clk 0:01:57]}  Bd3 {[%clk 0:02:25]} 14. Qg4 {[%clk 0:01:45]}  d4 {[%clk 0:02:22]} 15. exd4 {[%clk 0:01:26]}  Re8+ {[%clk 0:02:22]} 16. Kd1 {[%clk 0:01:27]}  Qe7 {[%clk 0:02:05]} 17. Ne4 {[%clk 0:01:09]}  Qxe4 {[%clk 0:02:04]} 18. Qxe4 {[%clk 0:01:08]}  Rxe4 {[%clk 0:01:59]} 19. Kd2 {[%clk 0:00:46]}  Bxc4 {[%clk 0:01:57]} 20. Rhe1 {[%clk 0:00:47]}  Rxe1 {[%clk 0:01:57]} 21. Rxe1 {[%clk 0:00:48]}  Nc6 {[%clk 0:01:57]} 22. dxc5 {[%clk 0:00:47]}  dxc5 {[%clk 0:01:57]} 0-1


[Site "https://www.chess.com"]

[Event "Titled Tuesday Blitz October 26 2021"]
[White "Jones, Gawain C B"]
[Black "Grischuk, Alexander"]
[WhiteFideId "409561"]
[BlackFideId "4126025"]
[WhiteElo "2657"]
[BlackElo "2757"]
[Result "0-1"]
[Round "06"]
[TimeControl "180+1"]
[Date "2021.10.26"]
[WhiteClock "0:00:05"]
[BlackClock "0:00:02"]

1. e4 {[%clk 0:03:00]}  c5 {[%clk 0:02:57]} 2. Nc3 {[%clk 0:03:00]}  d6 {[%clk 0:02:58]} 3. Bb5+ {[%clk 0:02:59]}  Bd7 {[%clk 0:02:55]} 4. Bxd7+ {[%clk 0:02:58]}  Qxd7 {[%clk 0:02:55]} 5. d4 {[%clk 0:02:56]}  cxd4 {[%clk 0:02:56]} 6. Qxd4 {[%clk 0:02:56]}  Nc6 {[%clk 0:02:56]} 7. Qd3 {[%clk 0:02:57]}  g6 {[%clk 0:02:53]} 8. Nf3 {[%clk 0:02:54]}  Bg7 {[%clk 0:02:53]} 9. O-O {[%clk 0:02:54]}  Nf6 {[%clk 0:02:52]} 10. Bg5 {[%clk 0:02:54]}  O-O {[%clk 0:02:50]} 11. Nd5 {[%clk 0:02:51]}  Nh5 {[%clk 0:02:47]} 12. c3 {[%clk 0:02:42]}  h6 {[%clk 0:02:46]} 13. Be3 {[%clk 0:02:36]}  Kh7 {[%clk 0:02:43]} 14. Rfd1 {[%clk 0:02:30]}  Rac8 {[%clk 0:02:39]} 15. h3 {[%clk 0:02:22]}  Nf6 {[%clk 0:02:32]} 16. a4 {[%clk 0:02:13]}  Qe6 {[%clk 0:02:18]} 17. a5 {[%clk 0:02:02]}  Rfd8 {[%clk 0:02:01]} 18. Ra4 {[%clk 0:01:18]}  Nd7 {[%clk 0:01:41]} 19. Nd4 {[%clk 0:01:03]}  Nxd4 {[%clk 0:01:37]} 20. cxd4 {[%clk 0:01:02]}  Nf6 {[%clk 0:01:31]} 21. Nc3 {[%clk 0:00:46]}  Qb3 {[%clk 0:01:16]} 22. Raa1 {[%clk 0:00:25]}  Qxb2 {[%clk 0:01:08]} 23. Bd2 {[%clk 0:00:25]}  Qb3 {[%clk 0:00:57]} 24. Rdb1 {[%clk 0:00:24]}  Qc4 {[%clk 0:00:57]} 25. Qe3 {[%clk 0:00:13]}  Nd7 {[%clk 0:00:36]} 26. Ra4 {[%clk 0:00:13]}  Qa6 {[%clk 0:00:34]} 27. Nd5 {[%clk 0:00:11]}  e6 {[%clk 0:00:33]} 28. Nb4 {[%clk 0:00:07]}  Qc4 {[%clk 0:00:33]} 29. d5 {[%clk 0:00:05]}  exd5 {[%clk 0:00:31]} 30. exd5 {[%clk 0:00:05]}  Re8 {[%clk 0:00:29]} 31. Qxa7 {[%clk 0:00:04]}  Nc5 {[%clk 0:00:13]} 32. Ra3 {[%clk 0:00:04]}  Bd4 {[%clk 0:00:12]} 33. Be3 {[%clk 0:00:04]}  Bxe3 {[%clk 0:00:12]} 34. Rxe3 {[%clk 0:00:04]}  Rxe3 {[%clk 0:00:11]} 35. fxe3 {[%clk 0:00:05]}  Qe4 {[%clk 0:00:10]} 36. Rf1 {[%clk 0:00:05]}  Qxb4 {[%clk 0:00:06]} 37. Rxf7+ {[%clk 0:00:05]}  Kg8 {[%clk 0:00:06]} 38. Rf1 {[%clk 0:00:05]}  Qb5 {[%clk 0:00:05]} 39. Rf4 {[%clk 0:00:03]}  Qa6 {[%clk 0:00:05]} 40. Qxa6 {[%clk 0:00:04]}  bxa6 {[%clk 0:00:05]} 41. Rf6 {[%clk 0:00:05]}  Rd8 {[%clk 0:00:02]} 42. Rxg6+ {[%clk 0:00:05]}  Kh7 {[%clk 0:00:03]} 43. Rg4 {[%clk 0:00:05]}  Nb3 {[%clk 0:00:02]} 44. Rb4 {[%clk 0:00:04]}  Nxa5 {[%clk 0:00:02]} 45. Ra4 {[%clk 0:00:05]}  Nb3 {[%clk 0:00:02]} 46. Rxa6 {[%clk 0:00:05]}  Nc5 {[%clk 0:00:03]} 47. Ra7+ {[%clk 0:00:04]}  Kg6 {[%clk 0:00:04]} 48. Kf2 {[%clk 0:00:04]}  Nd3+ {[%clk 0:00:02]} 49. Kg3 {[%clk 0:00:04]}  Ne5 {[%clk 0:00:02]} 50. Re7 {[%clk 0:00:04]}  Nf7 {[%clk 0:00:01]} 51. Re6+ {[%clk 0:00:04]}  Kg7 {[%clk 0:00:01]} 52. Kf4 {[%clk 0:00:04]}  Rc8 {[%clk 0:00:01]} 53. e4 {[%clk 0:00:04]}  Rc1 {[%clk 0:00:02]} 54. h4 {[%clk 0:00:04]}  Rf1+ {[%clk 0:00:02]} 55. Ke3 {[%clk 0:00:04]}  Rf6 {[%clk 0:00:02]} 56. Re7 {[%clk 0:00:04]}  Kf8 {[%clk 0:00:03]} 57. Rc7 {[%clk 0:00:04]}  Ne5 {[%clk 0:00:03]} 58. Rc8+ {[%clk 0:00:04]}  Kg7 {[%clk 0:00:03]} 59. Rc7+ {[%clk 0:00:05]}  Kf8 {[%clk 0:00:03]} 60. Kd4 {[%clk 0:00:05]}  Rg6 {[%clk 0:00:02]} 61. Rh7 {[%clk 0:00:05]}  Rg3 {[%clk 0:00:02]} 0-1


[Site "https://www.chess.com"]

[Event "Titled Tuesday Blitz October 26 2021"]
[White "Lazavik, Denis"]
[Black "Vakhlamov, Igor L."]
[WhiteFideId "13515110"]
[BlackFideId "24126748"]
[WhiteElo "2436"]
[BlackElo "2416"]
[Result "1-0"]
[Round "06"]
[TimeControl "180+1"]
[Date "2021.10.26"]
[WhiteClock "0:00:05"]
[BlackClock "0:00:02"]

1. d4 {[%clk 0:03:00]}  d5 {[%clk 0:02:59]} 2. c4 {[%clk 0:03:00]}  c6 {[%clk 0:03:00]} 3. Nf3 {[%clk 0:03:00]}  Nf6 {[%clk 0:03:00]} 4. Nc3 {[%clk 0:03:01]}  a6 {[%clk 0:03:00]} 5. cxd5 {[%clk 0:02:44]}  cxd5 {[%clk 0:03:01]} 6. Bf4 {[%clk 0:02:44]}  Nc6 {[%clk 0:03:01]} 7. e3 {[%clk 0:02:44]}  Bg4 {[%clk 0:03:01]} 8. h3 {[%clk 0:02:38]}  Bxf3 {[%clk 0:03:01]} 9. Qxf3 {[%clk 0:02:37]}  e6 {[%clk 0:03:02]} 10. Bd3 {[%clk 0:02:37]}  Bd6 {[%clk 0:03:02]} 11. Bg5 {[%clk 0:02:35]}  h6 {[%clk 0:03:03]} 12. Bh4 {[%clk 0:02:35]}  Be7 {[%clk 0:02:45]} 13. O-O {[%clk 0:02:32]}  O-O {[%clk 0:02:45]} 14. Rac1 {[%clk 0:02:28]}  Rc8 {[%clk 0:02:44]} 15. Qe2 {[%clk 0:02:25]}  Nd7 {[%clk 0:02:35]} 16. Bg3 {[%clk 0:02:23]}  f5 {[%clk 0:02:26]} 17. a3 {[%clk 0:02:18]}  Na5 {[%clk 0:02:20]} 18. Rc2 {[%clk 0:02:15]}  Nc4 {[%clk 0:02:18]} 19. Rfc1 {[%clk 0:02:06]}  b5 {[%clk 0:02:18]} 20. Qd1 {[%clk 0:02:05]}  Nf6 {[%clk 0:01:43]} 21. a4 {[%clk 0:02:01]}  Qb6 {[%clk 0:01:28]} 22. axb5 {[%clk 0:01:57]}  axb5 {[%clk 0:01:28]} 23. Ne2 {[%clk 0:01:57]}  Ne4 {[%clk 0:01:18]} 24. Bxe4 {[%clk 0:01:53]}  fxe4 {[%clk 0:01:19]} 25. b3 {[%clk 0:01:54]}  Nd6 {[%clk 0:01:06]} 26. Bxd6 {[%clk 0:01:52]}  Rxc2 {[%clk 0:01:06]} 27. Bxe7 {[%clk 0:01:52]}  Rxc1 {[%clk 0:01:06]} 28. Qxc1 {[%clk 0:01:51]}  Ra8 {[%clk 0:00:58]} 29. Nf4 {[%clk 0:01:47]}  Kf7 {[%clk 0:00:57]} 30. Bc5 {[%clk 0:01:46]}  Qa5 {[%clk 0:00:57]} 31. Kh2 {[%clk 0:01:16]}  Qa1 {[%clk 0:00:54]} 32. Qxa1 {[%clk 0:01:14]}  Rxa1 {[%clk 0:00:54]} 33. b4 {[%clk 0:01:07]}  Ra2 {[%clk 0:00:49]} 34. h4 {[%clk 0:00:45]}  Rxf2 {[%clk 0:00:47]} 35. Kg3 {[%clk 0:00:45]}  Rc2 {[%clk 0:00:43]} 36. h5 {[%clk 0:00:44]}  Kf6 {[%clk 0:00:36]} 37. Bd6 {[%clk 0:00:44]}  Rb2 {[%clk 0:00:31]} 38. Kg4 {[%clk 0:00:38]}  Rb3 {[%clk 0:00:25]} 39. Ng6 {[%clk 0:00:29]}  Rxe3 {[%clk 0:00:23]} 40. Nh8 {[%clk 0:00:24]}  Re2 {[%clk 0:00:19]} 41. Be5+ {[%clk 0:00:23]}  Ke7 {[%clk 0:00:20]} 42. Kg3 {[%clk 0:00:20]}  Kf8 {[%clk 0:00:19]} 43. Bd6+ {[%clk 0:00:16]}  Kg8 {[%clk 0:00:19]} 44. Ng6 {[%clk 0:00:17]}  Rd2 {[%clk 0:00:19]} 45. Bc5 {[%clk 0:00:13]}  e3 {[%clk 0:00:16]} 46. Kf3 {[%clk 0:00:12]}  e2 {[%clk 0:00:16]} 47. Kf2 {[%clk 0:00:13]}  e1=Q+ {[%clk 0:00:16]} 48. Kxe1 {[%clk 0:00:13]}  Rxg2 {[%clk 0:00:17]} 49. Ne7+ {[%clk 0:00:08]}  Kf7 {[%clk 0:00:16]} 50. Nc8 {[%clk 0:00:09]}  Rh2 {[%clk 0:00:16]} 51. Nd6+ {[%clk 0:00:08]}  Kf6 {[%clk 0:00:16]} 52. Nxb5 {[%clk 0:00:09]}  Rxh5 {[%clk 0:00:17]} 53. Nc7 {[%clk 0:00:08]}  Rh1+ {[%clk 0:00:16]} 54. Kf2 {[%clk 0:00:08]}  Rb1 {[%clk 0:00:16]} 55. b5 {[%clk 0:00:08]}  g5 {[%clk 0:00:16]} 56. b6 {[%clk 0:00:09]}  h5 {[%clk 0:00:15]} 57. Na6 {[%clk 0:00:09]}  Rb5 {[%clk 0:00:14]} 58. Nc7 {[%clk 0:00:07]}  Rb2+ {[%clk 0:00:14]} 59. Kf1 {[%clk 0:00:05]}  g4 {[%clk 0:00:13]} 60. Na6 {[%clk 0:00:05]}  Rb5 {[%clk 0:00:14]} 61. Nb4 {[%clk 0:00:02]}  Kf5 {[%clk 0:00:13]} 62. Kf2 {[%clk 0:00:02]}  e5 {[%clk 0:00:13]} 63. Nxd5 {[%clk 0:00:01]}  exd4 {[%clk 0:00:12]} 64. Ne7+ {[%clk 0:00:01]}  Ke6 {[%clk 0:00:12]} 65. Nc6 {[%clk 0:00:02]}  Rxc5 {[%clk 0:00:12]} 66. b7 {[%clk 0:00:02]}  Rb5 {[%clk 0:00:11]} 67. Nxd4+ {[%clk 0:00:02]}  Kd7 {[%clk 0:00:09]} 68. Nxb5 {[%clk 0:00:03]}  Kc6 {[%clk 0:00:09]} 69. b8=Q {[%clk 0:00:04]}  h4 {[%clk 0:00:09]} 70. Nd4+ {[%clk 0:00:04]}  Kd5 {[%clk 0:00:09]} 71. Ne2 {[%clk 0:00:05]}  g3+ {[%clk 0:00:10]} 72. Kg2 {[%clk 0:00:05]}  Ke4 {[%clk 0:00:00]} 73. Qe8+ {[%clk 0:00:04]}  Kf5 {[%clk 0:00:01]} 74. Qh5+ {[%clk 0:00:04]}  Ke4 {[%clk 0:00:01]} 75. Qxh4+ {[%clk 0:00:05]}  Kf5 {[%clk 0:00:02]} 76. Nxg3+ {[%clk 0:00:05]} 1-0


[Site "https://www.chess.com"]

[Event "Titled Tuesday Blitz October 26 2021"]
[White "Martinez Alcantara, Jose Eduardo"]
[Black "Savchenko, Boris"]
[WhiteFideId "3805662"]
[BlackFideId "4147332"]
[WhiteElo "2690"]
[BlackElo "2526"]
[Result "1-0"]
[Round "06"]
[TimeControl "180+1"]
[Date "2021.10.26"]
[WhiteClock "0:00:02"]
[BlackClock "0:00:01"]

1. e4 {[%clk 0:03:00]}  c5 {[%clk 0:02:55]} 2. Nf3 {[%clk 0:03:01]}  d6 {[%clk 0:02:55]} 3. d4 {[%clk 0:03:01]}  cxd4 {[%clk 0:02:56]} 4. Nxd4 {[%clk 0:03:02]}  Nf6 {[%clk 0:02:55]} 5. Nc3 {[%clk 0:03:02]}  a6 {[%clk 0:02:55]} 6. h3 {[%clk 0:03:02]}  e5 {[%clk 0:02:54]} 7. Nb3 {[%clk 0:03:01]}  h5 {[%clk 0:02:51]} 8. f4 {[%clk 0:02:37]}  h4 {[%clk 0:02:40]} 9. Be2 {[%clk 0:02:31]}  Qb6 {[%clk 0:02:36]} 10. Qd3 {[%clk 0:02:25]}  Nc6 {[%clk 0:02:33]} 11. Be3 {[%clk 0:02:24]}  Qc7 {[%clk 0:02:32]} 12. O-O-O {[%clk 0:02:20]}  Be6 {[%clk 0:02:30]} 13. Kb1 {[%clk 0:02:01]}  Be7 {[%clk 0:02:17]} 14. f5 {[%clk 0:01:49]}  Bd7 {[%clk 0:01:56]} 15. a3 {[%clk 0:01:35]}  Rc8 {[%clk 0:01:47]} 16. Bg5 {[%clk 0:01:31]}  b5 {[%clk 0:01:31]} 17. Bxf6 {[%clk 0:01:26]}  gxf6 {[%clk 0:01:32]} 18. Nd5 {[%clk 0:01:26]}  Qb8 {[%clk 0:01:31]} 19. g3 {[%clk 0:01:21]}  hxg3 {[%clk 0:01:04]} 20. Rhg1 {[%clk 0:01:21]}  Rxh3 {[%clk 0:00:57]} 21. Rxg3 {[%clk 0:01:21]}  Rh8 {[%clk 0:00:55]} 22. Rdg1 {[%clk 0:01:20]}  Kd8 {[%clk 0:00:55]} 23. Rg8+ {[%clk 0:01:14]}  Rxg8 {[%clk 0:00:55]} 24. Rxg8+ {[%clk 0:01:15]}  Be8 {[%clk 0:00:56]} 25. Bh5 {[%clk 0:01:04]}  Kd7 {[%clk 0:00:56]} 26. Qe3 {[%clk 0:00:44]}  Rd8 {[%clk 0:00:39]} 27. Qh6 {[%clk 0:00:37]}  Qb7 {[%clk 0:00:16]} 28. Qh8 {[%clk 0:00:30]}  a5 {[%clk 0:00:16]} 29. c3 {[%clk 0:00:26]}  a4 {[%clk 0:00:15]} 30. Nc1 {[%clk 0:00:26]}  Na5 {[%clk 0:00:14]} 31. Nd3 {[%clk 0:00:23]}  Nc4 {[%clk 0:00:15]} 32. Ka2 {[%clk 0:00:20]}  Nd2 {[%clk 0:00:14]} 33. Qh7 {[%clk 0:00:13]}  Nxe4 {[%clk 0:00:14]} 34. Bxf7 {[%clk 0:00:13]}  Bxf7 {[%clk 0:00:09]} 35. Qxf7 {[%clk 0:00:12]}  Rxg8 {[%clk 0:00:10]} 36. Qe6+ {[%clk 0:00:06]}  Kc6 {[%clk 0:00:09]} 37. Nxe7+ {[%clk 0:00:04]}  Kb6 {[%clk 0:00:09]} 38. Nxg8 {[%clk 0:00:03]}  Nxc3+ {[%clk 0:00:06]} 39. bxc3 {[%clk 0:00:03]}  Qg2+ {[%clk 0:00:03]} 40. Nb2 {[%clk 0:00:04]}  e4 {[%clk 0:00:04]} 41. Nxf6 {[%clk 0:00:04]}  Ka5 {[%clk 0:00:01]} 42. Nxe4 {[%clk 0:00:04]}  Qd2 {[%clk 0:00:01]} 43. Qxd6 {[%clk 0:00:02]} 1-0


[Site "https://www.chess.com"]

[Event "Titled Tuesday Blitz October 26 2021"]
[White "Mikhailovsky, Vladimir"]
[Black "Shyaamnikhil P"]
[WhiteFideId "34105414"]
[BlackFideId "5024218"]
[WhiteElo "2402"]
[BlackElo "2300"]
[Result "1-0"]
[Round "06"]
[TimeControl "180+1"]
[Date "2021.10.26"]
[WhiteClock "0:00:05"]
[BlackClock "0:00:08"]

1. d4 {[%clk 0:03:00]}  Nf6 {[%clk 0:02:59]} 2. Nc3 {[%clk 0:02:58]}  e6 {[%clk 0:02:57]} 3. e4 {[%clk 0:02:57]}  d5 {[%clk 0:02:57]} 4. e5 {[%clk 0:02:57]}  Nfd7 {[%clk 0:02:57]} 5. f4 {[%clk 0:02:57]}  c5 {[%clk 0:02:57]} 6. Nce2 {[%clk 0:02:56]}  Nc6 {[%clk 0:02:54]} 7. Nf3 {[%clk 0:02:57]}  a5 {[%clk 0:02:52]} 8. Be3 {[%clk 0:02:53]}  a4 {[%clk 0:02:51]} 9. c3 {[%clk 0:02:46]}  a3 {[%clk 0:02:47]} 10. b3 {[%clk 0:02:47]}  Be7 {[%clk 0:02:44]} 11. g3 {[%clk 0:02:21]}  O-O {[%clk 0:02:40]} 12. Bg2 {[%clk 0:02:21]}  f6 {[%clk 0:02:32]} 13. exf6 {[%clk 0:02:13]}  Nxf6 {[%clk 0:02:30]} 14. O-O {[%clk 0:02:14]}  Ng4 {[%clk 0:02:29]} 15. Qd2 {[%clk 0:02:12]}  cxd4 {[%clk 0:02:26]} 16. Nexd4 {[%clk 0:02:09]}  Nxe3 {[%clk 0:02:17]} 17. Qxe3 {[%clk 0:02:10]}  Nxd4 {[%clk 0:02:17]} 18. cxd4 {[%clk 0:01:50]}  Bb4 {[%clk 0:02:08]} 19. Rac1 {[%clk 0:01:49]}  Bd7 {[%clk 0:01:59]} 20. Ne5 {[%clk 0:01:45]}  Bb5 {[%clk 0:01:58]} 21. Rf2 {[%clk 0:01:45]}  Rc8 {[%clk 0:01:56]} 22. Rfc2 {[%clk 0:01:40]}  Rxc2 {[%clk 0:01:52]} 23. Rxc2 {[%clk 0:01:41]}  Qd6 {[%clk 0:01:43]} 24. Bh3 {[%clk 0:01:35]}  Re8 {[%clk 0:01:37]} 25. Nd3 {[%clk 0:01:31]}  Bxd3 {[%clk 0:01:31]} 26. Qxd3 {[%clk 0:01:32]}  Qb6 {[%clk 0:01:25]} 27. Kg2 {[%clk 0:01:24]}  g6 {[%clk 0:01:23]} 28. Re2 {[%clk 0:01:21]}  Kf7 {[%clk 0:01:20]} 29. Bg4 {[%clk 0:01:16]}  Bf8 {[%clk 0:01:18]} 30. h4 {[%clk 0:01:14]}  Bg7 {[%clk 0:01:17]} 31. Rd2 {[%clk 0:00:55]}  Rc8 {[%clk 0:01:15]} 32. h5 {[%clk 0:00:54]}  Rc6 {[%clk 0:01:14]} 33. hxg6+ {[%clk 0:00:54]}  hxg6 {[%clk 0:01:14]} 34. Qe3 {[%clk 0:00:46]}  Qd8 {[%clk 0:01:04]} 35. Qe2 {[%clk 0:00:38]}  Qb6 {[%clk 0:00:58]} 36. Qe3 {[%clk 0:00:38]}  Qb4 {[%clk 0:00:54]} 37. Kh3 {[%clk 0:00:18]}  Ke7 {[%clk 0:00:39]} 38. Qd3 {[%clk 0:00:12]}  Kf7 {[%clk 0:00:35]} 39. Qe3 {[%clk 0:00:12]}  Bf6 {[%clk 0:00:31]} 40. Be2 {[%clk 0:00:08]}  Ke7 {[%clk 0:00:27]} 41. Bg4 {[%clk 0:00:07]}  Qc3 {[%clk 0:00:26]} 42. Rd3 {[%clk 0:00:06]}  Qc1 {[%clk 0:00:25]} 43. Qxc1 {[%clk 0:00:03]}  Rxc1 {[%clk 0:00:26]} 44. Rd2 {[%clk 0:00:04]}  Rb1 {[%clk 0:00:20]} 45. Re2 {[%clk 0:00:04]}  Bxd4 {[%clk 0:00:20]} 46. Rxe6+ {[%clk 0:00:04]}  Kf7 {[%clk 0:00:20]} 47. Rd6 {[%clk 0:00:04]}  b6 {[%clk 0:00:19]} 48. Rxd5 {[%clk 0:00:04]}  Bc5 {[%clk 0:00:18]} 49. Bd7 {[%clk 0:00:01]}  Rb2 {[%clk 0:00:18]} 50. Bb5 {[%clk 0:00:02]}  Rxa2 {[%clk 0:00:16]} 51. Bc4 {[%clk 0:00:02]}  Rb2 {[%clk 0:00:15]} 52. Rxc5+ {[%clk 0:00:02]}  Kg7 {[%clk 0:00:15]} 53. Rc7+ {[%clk 0:00:02]}  Kf8 {[%clk 0:00:14]} 54. Ra7 {[%clk 0:00:03]}  b5 {[%clk 0:00:13]} 55. Bxb5 {[%clk 0:00:03]}  Rxb3 {[%clk 0:00:13]} 56. Bc4 {[%clk 0:00:04]}  Rc3 {[%clk 0:00:12]} 57. Be6 {[%clk 0:00:04]}  Re3 {[%clk 0:00:11]} 58. Bd5 {[%clk 0:00:04]}  Rd3 {[%clk 0:00:11]} 59. Bc4 {[%clk 0:00:05]}  Rc3 {[%clk 0:00:11]} 60. Bf7 {[%clk 0:00:06]}  a2 {[%clk 0:00:08]} 61. Bxa2 {[%clk 0:00:05]} 1-0


[Site "https://www.chess.com"]

[Event "Titled Tuesday Blitz October 26 2021"]
[White "Mirzoev, Azer"]
[Black "Shipov, Sergei"]
[WhiteFideId "13400304"]
[BlackFideId "4113624"]
[WhiteElo "2525"]
[BlackElo "2803"]
[Result "0-1"]
[Round "06"]
[TimeControl "180+1"]
[Date "2021.10.26"]
[WhiteClock "0:00:01"]
[BlackClock "0:00:16"]

1. d4 {[%clk 0:02:59]}  d5 {[%clk 0:02:57]} 2. Nf3 {[%clk 0:02:58]}  e6 {[%clk 0:02:57]} 3. Bf4 {[%clk 0:02:58]}  Bd6 {[%clk 0:02:57]} 4. Bg3 {[%clk 0:02:58]}  c5 {[%clk 0:02:57]} 5. e3 {[%clk 0:02:57]}  Nf6 {[%clk 0:02:57]} 6. Nbd2 {[%clk 0:02:56]}  O-O {[%clk 0:02:56]} 7. c3 {[%clk 0:02:56]}  Qc7 {[%clk 0:02:55]} 8. Bd3 {[%clk 0:02:52]}  Nbd7 {[%clk 0:02:55]} 9. O-O {[%clk 0:02:48]}  e5 {[%clk 0:02:55]} 10. e4 {[%clk 0:02:44]}  exd4 {[%clk 0:02:51]} 11. cxd4 {[%clk 0:02:43]}  Bxg3 {[%clk 0:02:42]} 12. hxg3 {[%clk 0:02:43]}  dxe4 {[%clk 0:02:42]} 13. Nxe4 {[%clk 0:02:43]}  Nxe4 {[%clk 0:02:42]} 14. Bxe4 {[%clk 0:02:44]}  Nf6 {[%clk 0:02:42]} 15. Bd3 {[%clk 0:02:37]}  cxd4 {[%clk 0:02:39]} 16. Qa4 {[%clk 0:02:19]}  Rd8 {[%clk 0:02:35]} 17. Rfd1 {[%clk 0:01:52]}  Bg4 {[%clk 0:02:33]} 18. Rac1 {[%clk 0:01:51]}  Qb6 {[%clk 0:02:33]} 19. Qb5 {[%clk 0:01:48]}  Qxb5 {[%clk 0:02:18]} 20. Bxb5 {[%clk 0:01:49]}  a6 {[%clk 0:02:12]} 21. Bf1 {[%clk 0:01:47]}  Rac8 {[%clk 0:01:43]} 22. Rxc8 {[%clk 0:01:46]}  Rxc8 {[%clk 0:01:43]} 23. Rxd4 {[%clk 0:01:45]}  h6 {[%clk 0:01:42]} 24. a3 {[%clk 0:01:38]}  Rc1 {[%clk 0:01:37]} 25. Rc4 {[%clk 0:01:29]}  Rb1 {[%clk 0:01:33]} 26. Rb4 {[%clk 0:01:21]}  b5 {[%clk 0:01:32]} 27. a4 {[%clk 0:01:12]}  Bd7 {[%clk 0:01:31]} 28. Ne5 {[%clk 0:00:54]}  Be8 {[%clk 0:01:31]} 29. Nd3 {[%clk 0:00:08]}  bxa4 {[%clk 0:01:28]} 30. f3 {[%clk 0:00:05]}  Bb5 {[%clk 0:01:28]} 31. Rd4 {[%clk 0:00:03]}  Nd7 {[%clk 0:01:20]} 32. Kf2 {[%clk 0:00:02]}  Ne5 {[%clk 0:00:54]} 33. Nxe5 {[%clk 0:00:02]}  Rxf1+ {[%clk 0:00:54]} 34. Ke3 {[%clk 0:00:02]}  Re1+ {[%clk 0:00:53]} 35. Kf4 {[%clk 0:00:02]}  f6 {[%clk 0:00:47]} 36. Ng6 {[%clk 0:00:01]}  Kf7 {[%clk 0:00:47]} 37. Nh8+ {[%clk 0:00:01]}  Ke6 {[%clk 0:00:47]} 38. Ng6 {[%clk 0:00:01]}  Re2 {[%clk 0:00:47]} 39. Re4+ {[%clk 0:00:01]}  Rxe4+ {[%clk 0:00:45]} 40. Kxe4 {[%clk 0:00:02]}  Bc6+ {[%clk 0:00:30]} 41. Kd4 {[%clk 0:00:02]}  Kf7 {[%clk 0:00:30]} 42. Nf4 {[%clk 0:00:01]}  g5 {[%clk 0:00:30]} 43. Nd5 {[%clk 0:00:01]}  Bb5 {[%clk 0:00:29]} 44. Ne3 {[%clk 0:00:01]}  Ke6 {[%clk 0:00:29]} 45. g4 {[%clk 0:00:01]}  Kf7 {[%clk 0:00:20]} 46. Nf5 {[%clk 0:00:01]}  Kg6 {[%clk 0:00:20]} 47. Ng3 {[%clk 0:00:01]}  Bd7 {[%clk 0:00:18]} 48. Kc5 {[%clk 0:00:01]}  f5 {[%clk 0:00:16]} 49. gxf5+ {[%clk 0:00:01]}  Bxf5 {[%clk 0:00:16]} 50. Kb6 {[%clk 0:00:01]}  Bd3 {[%clk 0:00:16]} 51. Kc5 {[%clk 0:00:01]}  h5 {[%clk 0:00:16]} 52. Kd4 {[%clk 0:00:01]}  Bb5 {[%clk 0:00:16]} 0-1


[Site "https://www.chess.com"]